Cogmind - Beta 9.2 @@@ ROGUE MODE // 2019.11.28 @ 11:46:47 Player: Cassie Rose Result: Destroyed by S-10 Pest with Light Assault Rifle Performance ------------- Evolutions (0) 0 Regions Visited (1) 200 Robots Destroyed (23) 115 Value Destroyed (409) 409 Prototype IDs (2) 40 Alien Tech Used (0) 0 Bonus (0) 0 TOTAL SCORE: 764 Bonus ------- None Cogmind --------- Core Integrity 0/250 Matter 300/300 Energy 10/100 System Corruption 1% Temperature Cool (6) Movement Rolling (120) Ox2 Location -10/Materials Parts ------- > --- POWER (1) -------- (None) > --- PROPULSION (2) --- Compact Wheel > --- UTILITY (2) ------ High-capacity Storage Unit Signal Interpreter > --- WEAPON (2) ------- Light EM Pulse Cannon > --- INVENTORY (12) --- Light Treads High-capacity Battery (400) Sensor Array Light EM Pulse Cannon Peak State ------------ > --- POWER ------------ Light Nuclear Core > --- PROPULSION ------- Compact Wheel Compact Wheel > --- UTILITY ---------- Signal Interpreter Improved Terrain Scanner > --- WEAPON ----------- Light Assault Rifle Light Cannon > --- INVENTORY -------- Light Treads Sensor Array [Rating: 10] Favorites ----------- Power Light Ion Engine Engine Light Ion Engine Power Core Light Nuclear Core Propulsion Compact Wheel Wheel Compact Wheel Utility Signal Interpreter Device Improved Terrain Scanner Storage High-capacity Storage Unit Processor Signal Interpreter Weapon Light Assault Rifle Energy Gun Medium Laser Energy Cannon Light EM Pulse Cannon Ballistic Gun Light Assault Rifle Ballistic Cannon Light Cannon Build | -11 -10 ------- Run | Scr Mat Slots Evolved . | . . Power . | . . Propulsion . | . . Utility . | . . Weapon . | . . Parts Attached 17 | 6 11 Power 2 | 1 1 Engine 1 | 1 . Core 1 | . 1 Reactor . | . . Propulsion 6 | 2 4 Treads . | . . Leg . | . . Wheel 6 | 2 4 Hover . | . . Flight . | . . Utility 3 | 1 2 Device 1 | 1 . Storage 1 | . 1 Processor 1 | . 1 Hackware . | . . Protection . | . . Artifact . | . . Weapon 6 | 2 4 Energy Gun 2 | 1 1 Energy Cannon 1 | . 1 Ballistic Gun 2 | 1 1 Ballistic Cannon 1 | . 1 Launcher . | . . Special Weapon . | . . Impact Weapon . | . . Slashing Weapon . | . . Piercing Weapon . | . . Special Melee Weapon . | . . Unidentified Prototypes . | . . Parts Lost 9 | . 9 Power 2 | . 2 Propulsion 3 | . 3 Utility 1 | . 1 Weapon 3 | . 3 Highest Loss Streak 3 | . 3 Average Slot Usage (%) 93 | . 93 Engine 6 | . 6 Core 7 | . 7 Wheel 25 | . 25 Device 8 | . 8 Storage 5 | . 5 Processor 13 | . 13 Energy Gun 6 | . 6 Ballistic Gun 11 | . 11 Ballistic Cannon 7 | . 7 Naked Turns . | . . Heaviest Build 43 | 6 43 Greatest Support 32 | 26 32 Greatest Overweight (x) 1 | . 1 Average Overweight (x) . | . . Largest Inventory Capacity 12 | 4 12 Average Capacity 6 | 4 6 Most Carried 4 | 2 4 Average Carried 1 | . 2 Final Capacity 12 | 4 12 Final Carried 4 | . 4 Class Distribution -------------------- 73% | Mutant 26% | Scavenger-Mutant Dominant Class ---------------- Mutant | -10/Materials Resources | -11 -10 ----------- Run | Scr Mat Matter Collected 588 | 283 305 Remotely . | . . Salvage Created 757 | 135 622 Parts 52 | 15 37 Haulers Intercepted 2 | . 2 Recyclers Shooed 1 | . 1 Parts Field Recycled . | . . Retrieved Matter . | . . Parts Self-Destructed . | . . Prevented . | . . Kills | -11 -10 ------- Run | Scr Mat Combat Hostiles Destroyed 12 | . 12 Guns 5 | . 5 Cannons 7 | . 7 Classes Destroyed 7 | 3 4 Worker 2 | 1 1 Tunneler 3 | 3 . Hauler 2 | . 2 Recycler 3 | 1 2 Watcher 1 | . 1 Swarmer 4 | . 4 Grunt 8 | . 8 Best Kill Streak 5 | 2 5 Combat Bots Only 3 | . 3 Max Kills in Single Turn 1 | 1 1 Gunslinging . | . . Exploded . | . . Melee . | . . Uniques/NPCs Destroyed . | . . Combat | -11 -10 -------- Run | Scr Mat Damage Taken 811 | . 811 Core 255 | . 255 Absorbed by Shields . | . . Core Remaining (%) 100 | 100 . Volleys Fired 103 | 23 80 Largest 2 | 2 2 Hottest 106 | 60 106 Shots Fired 190 | 46 144 Gun 150 | 46 104 Cannon 40 | . 40 Launcher . | . . Special . | . . Kinetic 143 | 23 120 Thermal 42 | 23 19 Explosive . | . . Electromagnetic 5 | . 5 Robot Hit Streak 8 | 4 8 Robot Miss Streak 4 | 4 4 Penetration Max . | . . Secondary Targets . | . . Shots Hit Robots 111 | 19 92 Core Hits 40 | 8 32 Critical Hits 1 | . 1 Critical Kills 1 | . 1 Critical Parts Destroyed . | . . Melee Attacks . | . . Impact . | . . Slashing . | . . Piercing . | . . Sneak Attacks . | . . Combat Hostiles . | . . Follow-up Attacks . | . . Damage Inflicted 1204 | 190 1014 Guns 799 | 190 609 Cannons 405 | . 405 Explosions . | . . Melee . | . . Ramming . | . . Kinetic 838 | 58 780 Thermal 306 | 132 174 Explosive . | . . Electromagnetic 60 | . 60 Impact . | . . Slashing . | . . Piercing . | . . Highest Corruption 1 | . 1 Average Corruption 1 | . 1 Corruption Purged . | . . Effects 5 | . 5 Message Errors 1 | . 1 Energy Discharges 1 | . 1 Data Loss (minor) 2 | . 2 Targeting Errors 1 | . 1 Overload Shots . | . . Overflow Damage . | . . Projectiles . | . . Explosions . | . . Melee . | . . Knockbacks 4 | . 4 Impact . | . . Kinetic 4 | . 4 Secondary . | . . Self-Inflicted Damage . | . . Shots . | . . Rammed . | . . Targets Rammed . | . . Kicked . | . . Crushed . | . . Highest Temperature 186 | 60 186 Average Temperature 29 | 30 29 Received Heat Transfer 288 | . 288 Siege Activations . | . . Robots Corrupted . | . . Combat Hostiles . | . . Parts Fried . | . . Impact Corruptions . | . . Robots Melted . | . . Combat Hostiles . | . . Parts Melted 1 | . 1 Heat Transferred 735 | 300 435 Parts Sabotaged . | . . Parts Stolen . | . . Parts Stripped . | . . Power Chain Reactions . | . . Missiles Intercepted . | . . Alert | -11 -10 ------- Run | Scr Mat Peak Influence 274 | 25 274 Average Influence 98 | 9 111 Maximum Alert Level 1 | . 1 Low Security (%) 92 | 100 91 Level 1 7 | . 8 Level 2 . | . . Level 3 . | . . Level 4 . | . . Level 5 . | . . High Security . | . . Max Security . | . . Squads Dispatched 3 | . 3 Investigation 1 | . 1 Extermination . | . . Reinforcement 2 | . 2 Assault . | . . Garrison . | . . Intercept . | . . Construction Impeded . | . . Haulers Reinforced . | . . Stealth | -11 -10 --------- Run | Scr Mat Distress Signals 5 | . 5 Communications Jammed . | . . Distress Signals . | . . Times Spotted 28 | . 28 Peak Tracking Total 5 | . 5 Tactical Retreats 1 | . 1 Traps | -11 -10 ------- Run | Scr Mat Traps Triggered 1 | . 1 Indirectly . | . . Trap Hack Attempts . | . . Triggered . | . . Disarmed . | . . Reprogrammed . | . . Reused . | . . Traps Extracted . | . . Installed . | . . Triggered . | . . Machines | -11 -10 ---------- Run | Scr Mat Machines Disabled 1 | . 1 Max in Single Turn 1 | . 1 Machines Sabotaged . | . . Garrisons Compromised . | . . Overloaded Fab Kills . | . . Fab Network Shutdowns . | . . Hacking | -11 -10 --------- Run | Scr Mat Machines Accessed 4 | . 4 Terminals 4 | . 4 Fabricators . | . . Repair Stations . | . . Recycling Units . | . . Scanalyzers . | . . Garrison Access . | . . Total Hacks 14 | . 14 Successful 7 | . 7 Failed 7 | . 7 Catastrophic . | . . Database Lockouts . | . . Manual 12 | . 12 Terminals 14 | . 14 Fabricators . | . . Repair Stations . | . . Recycling Units . | . . Scanalyzers . | . . Garrison Access . | . . Terminal Hacks 1 | . 1 Prototype ID Bank 1 | . 1 Fabricator Hacks . | . . Repair Station Hacks . | . . Recycling Unit Hacks . | . . Scanalyzer . | . . Garrison Access Hacks . | . . Unauthorized Hacks 18 | . 18 Terminals 6 | . 6 Assimilate 2 | . 2 Botnet 4 | . 4 Fabricators . | . . Repair Stations . | . . Recycling Units . | . . Scanalyzers . | . . Garrison Access . | . . Data Cores Recovered . | . . Used . | . . Hacking Detections 3 | . 3 Full Trace Events 1 | . 1 Feedback Events . | . . Feedback Blocked . | . . Robot Schematics Acquired . | . . Robots Built . | . . Matter . | . . Time . | . . Total Robot Build Rating . | . . Part Schematics Acquired . | . . Parts Built . | . . Matter . | . . Time . | . . Total Part Build Rating . | . . Parts Repaired . | . . Time . | . . Parts Recycled . | . . Recycled Matter . | . . Retrieved Matter . | . . Retrieved Components . | . . Parts Scanalyzed . | . . Part Schematics Acquired . | . . Parts Damaged . | . . Bothacking | -11 -10 ------------ Run | Scr Mat Used RIF Installer . | . . Robots Hacked . | . . Non-combat . | . . Combat . | . . Robot Hacks Applied . | . . Relay Couplers Released . | . . Robots Rewired . | . . Allies Hacked . | . . Hacks Repelled . | . . Allies | -11 -10 -------- Run | Scr Mat Total Allies . | . . Largest Group . | . . Highest-Rated Group . | . . Highest-Rated Ally . | . . Total Orders . | . . Ally Attacks . | . . Total Damage . | . . Kills . | . . Allies Corrupted . | . . Allies Melted . | . . Intel | -11 -10 ------- Run | Scr Mat Robot Analysis Total . | . . Derelict Logs Recovered . | . . Drone Launches . | . . Drone Recoveries . | . . Exploration | -11 -10 ------------- Run | Scr Mat Turns Passed 1049 | 125 924 Spaces Moved 678 | 57 621 Core 5 | 5 . Treads . | . . Legs . | . . Wheels 673 | 52 621 Hover . | . . Flight . | . . Fastest Speed 50 | 50 90 Average Speed 100 | 86 102 Slowest Speed 110 | 100 110 Overloaded Moves . | . . Propulsion Burnouts . | . . Robots Hopped . | . . Cave-ins Triggered . | . . Exploration Rate (%) 44 | 3 86 Regions Visited 1 Branch Regions . Pre-discovered Areas . | . . Known Exits Taken . | . . Unknown Exits Taken 1 | 1 . Scrap Searched . | . . Spaces Dug . | . . Terrain Destroyed . | . . Melee . | . . Projectile . | . . AOE . | . . Actions | -11 -10 --------- Run | Scr Mat Total 874 | 90 784 Wait 54 | . 54 Move 677 | 56 621 Hop . | . . Pick Up 19 | 5 14 Fast Attach 2 | 1 1 Attach 11 | 5 6 Detach . | . . Swap 4 | . 4 Drop 4 | . 4 Fire 103 | 23 80 Melee . | . . Ram . | . . Kick . | . . Crush . | . . Escape Stasis . | . . Rewire . | . . Trap . | . . Miscellaneous . | . . Route ------- -11/Scrapyard -10/Materials (discovered 3 exits: [*Mat] / [*Min x2]) History --------- Turn | Location | Event 23 | -11/Scrapyard | Discovered new exit (range 14) 126 | -11/Scrapyard | Entered Materials 316 | -10/Materials | Build established: Mutant 397 | -10/Materials | Discovered new exit (range 13) 422 | -10/Materials | Discovered new exit (range 6) 562 | -10/Materials | Discovered new exit (range 12) 666 | -10/Materials | Core integrity fell below 50% 711 | -10/Materials | Lost 3 parts (1n1u1w) 1032 | -10/Materials | Core integrity fell below 20% 1050 | -10/Materials | Destroyed by S-10 Pest with Light Assault Rifle Last Messages --------------- Terminal linked with 3 systems. Awaiting botnet instructions. 00904_ ALERT: Suspicious activity at Terminal M005. Dispatching Investigation squad. 00904_ K-01 Serf cleans the Terminal. 00967_ G-34 Mercenary knocked back. 00970_ G-34 Mercenary destroyed. 00974_ Acquired 20 matter. 01004_ System corrupted: Component data lost. 01007_ Acquired Lgt. EM Pulse Cannon. 01010_ Dropped Lgt. Cannon. 01011_ Acquired Lgt. EM Pulse Cannon. 01030_ Lgt. Nuclear Core destroyed. 01031_ Com. Wheel destroyed. 01035_ S-10 Pest destroyed. 01038_ K-01 Serf collects debris. 01039_ Med. Laser destroyed. 01043_ K-01 Serf collects debris. 01046_ K-01 Serf destroyed. 01048_ Destroyed Flight Unit. Map ----- +----------------------------------------------------+ | ?????# "T" #????#?######## | | ?????# #????# # | | ?????# #?#??# """ # | | ?????# #????# """ # = | | ?????# #????# """ # | | ?????# """ #????# ##+####+## | | ?????# """ #????# """ # | | ?????# """ #????# """ # | | ?????# #????# """ + | | ?????#####+####????# # ##### | | ???????# #?????######+### # | | ???????# ########## # | | ???????# ^ # < | | ???????# ^^ # | | ???????# ! # # | | ???????## ######"T"## # # "!" | | ????????# #????####### #""!" | | ????????# #???#??????# ##### | | ????????# #??????#???# % | | ????????# #####??????# ^ | | ????????# ] #???#??# ! | | ????????# ]]#??????# ^ | | ????????# [[#??#???# ^ | | ????????# ! [[#??????# ^ | | ????????# s[=//#?????####+########### | | ????????# *%@//#?????# # ??????? | | ????????# s #####?????# #???????? | | ????????# #???????#?# #???????? | | ????????# #?????????# #???????? | | ????????# #?????????# #???????? | | ????????+ #?????????# #????#??# | | ????????# #?????????########???????? | | ????????# #????????????????????????? | | ????????# ?????????????????????????? | | ????????# ?????????????????????????? | | ????????# ?????????????????????????? | | ????????# ?????????????????????????? | | ????????# ?????????????????????????? | | ????????# ?????????????????????????? | | ????????? ?????????????????????????? | | ?????????????????????????????????????? | | ?????????????????????????????????????? | | ?????????????????????????????????????? | | ?????????????????????????????????????? | | ?????????????????????????????????????? | | ?????????????????????????????????????? | | ?????????????????????????????????????? | | ?????????????????????????????????????? | | ?????????????????????????????????????? | | ?????????????????????????????????????? | +----------------------------------------------------+ Best States ------------- Heat Dissipation 25 Energy Generation 14 Energy Capacity 160 Matter Stores 300 Matter Capacity 300 Sight Range 16 Terrain Scan Range 16 Terrain Scan Density 10 Evasion (%) 42 Item Schematics ----------------- None Robot Schematics ------------------ None Fabricated ------------ Nothing Alien Tech Used ----------------- None Achievements -------------- None Challenges ------------ None Game ------ Seed ChromaticTiamatProtection Manual? 0 Play Time 00:15:02 Cumulative 43.0 hours Start 2019.11.28 @ 11:32:41 End 2019.11.28 @ 11:46:47 Sessions 1 Manual Loads 0 Difficulty Rogue Special Mode None Game No. 61 Rogue 61 Adventurer 0 Explorer 0 Win Type - Total 0 Types 0/0/0/0/0/0/0 Lore% 21 Gallery% 21 Achievement% 21 Wizard Run 0 Options --------- ASCII 0 Keyboard 0 Movement Arrows Keybinds 0 Fullscreen 1 Font 18/SmallcapsGlow Map View 76x50 Tactical HUD 1 Map Filters NONE Filters LOW_CONTRAST(13,24,33)|BRIGHTNESS(120)|SATURATION(80) Steam 1 RUN: b09f18ea-84fe-4776-8f1a-00f98929d220